[Event "Open NK Rapid 2025"]
[Site "Helmond, Netherlands"]
[Date "2025.05.03"]
[Round "4.19"]
[White "Cayonlu, Arda"]
[Black "Becx, Cesar"]
[Result "1-0"]
[TimeControl "15+5"]
[WhiteFideId "6339786"]
[BlackFideId "1001183"]
[WhiteElo "1885"]
[BlackElo "2075"]

1. e4 {[%clk 00:14:17]} {[%emt 00:00:53]} e5 {[%clk 00:15:09]} 2. f4 {[%clk
00:14:21]} {[%emt 00:00:02]} Nc6 {[%clk 00:15:06]} {[%emt 00:00:08]} 3. Nf3
{[%clk 00:14:22]} {[%emt 00:00:02]} f5 {[%clk 00:15:09]} {[%emt 00:00:03]} 4.
d3 {[%clk 00:12:24]} {[%emt 00:02:03]} exf4 {[%clk 00:14:27]} {[%emt 00:00:47]}
5. Bxf4 {[%clk 00:12:07]} {[%emt 00:00:21]} d6 {[%clk 00:14:23]} {[%emt
00:00:10]} 6. Nc3 {[%clk 00:11:44]} {[%emt 00:00:28]} Nf6 {[%clk 00:14:17]}
{[%emt 00:00:11]} 7. Qe2 {[%clk 00:10:23]} {[%emt 00:01:26]} Be7 {[%clk
00:13:31]} {[%emt 00:00:51]} 8. O-O-O {[%clk 00:09:07]} {[%emt 00:01:20]} O-O
{[%clk 00:13:32]} {[%emt 00:00:05]} 9. h3 {[%clk 00:07:07]} {[%emt 00:02:05]}
Qe8 {[%clk 00:07:01]} {[%emt 00:06:36]} 10. e5 {[%clk 00:06:13]} {[%emt
00:01:00]} dxe5 {[%clk 00:06:47]} {[%emt 00:00:19]} 11. Nxe5 {[%clk 00:06:15]}
{[%emt 00:00:02]} Nxe5 {[%clk 00:06:11]} {[%emt 00:00:42]} 12. Bxe5 {[%clk
00:06:16]} {[%emt 00:00:03]} Bd8 {[%clk 00:05:47]} {[%emt 00:00:29]} 13. d4
{[%clk 00:06:16]} {[%emt 00:00:05]} c6 {[%clk 00:05:26]} {[%emt 00:00:26]} 14.
Qf3 {[%clk 00:05:53]} {[%emt 00:00:29]} Be6 {[%clk 00:05:13]} {[%emt 00:00:18]}
15. Bd3 {[%clk 00:05:38]} {[%emt 00:00:20]} Nd5 {[%clk 00:04:17]} {[%emt
00:01:00]} 16. Nxd5 {[%clk 00:04:32]} {[%emt 00:01:11]} Bxd5 {[%clk 00:04:12]}
{[%emt 00:00:11]} 17. Qg3 {[%clk 00:04:34]} {[%emt 00:00:02]} Qg6 {[%clk
00:04:11]} {[%emt 00:00:06]} 18. Qxg6 {[%clk 00:04:29]} {[%emt 00:00:10]} hxg6
{[%clk 00:04:15]} {[%emt 00:00:01]} 19. Rhg1 {[%clk 00:03:58]} {[%emt
00:00:36]} Bg5+ {[%clk 00:04:13]} {[%emt 00:00:07]} 20. Kb1 {[%clk 00:03:58]}
{[%emt 00:00:05]} Be3 {[%clk 00:04:11]} {[%emt 00:00:07]} 21. Rge1 {[%clk
00:03:00]} {[%emt 00:01:03]} f4 {[%clk 00:04:15]} {[%emt 00:00:02]} 22. Bf1
{[%clk 00:03:03]} {[%emt 00:00:02]} Rae8 {[%clk 00:04:04]} {[%emt 00:00:16]} 23.
b3 {[%clk 00:02:09]} {[%emt 00:00:58]} b5 {[%clk 00:03:53]} {[%emt 00:00:16]}
24. Kb2 {[%clk 00:01:57]} {[%emt 00:00:18]} Bf2 {[%clk 00:03:22]} {[%emt
00:00:36]} 25. Re2 {[%clk 00:01:55]} {[%emt 00:00:05]} Bg3 {[%clk 00:03:08]}
{[%emt 00:00:21]} 26. Red2 {[%clk 00:01:44]} {[%emt 00:00:15]} g5 {[%clk
00:02:19]} {[%emt 00:00:54]} 27. c4 {[%clk 00:01:47]} {[%emt 00:00:02]} bxc4
{[%clk 00:02:23]} 28. Bxc4 {[%clk 00:01:49]} {[%emt 00:00:03]} Bxc4 {[%clk
00:01:42]} {[%emt 00:00:47]} 29. bxc4 {[%clk 00:01:53]} {[%emt 00:00:01]} Rf7
{[%clk 00:01:45]} {[%emt 00:00:01]} 30. Kc3 {[%clk 00:01:53]} {[%emt 00:00:05]}
Rb7 {[%clk 00:01:43]} {[%emt 00:00:07]} 31. Rb2 {[%clk 00:01:56]} {[%emt
00:00:02]} Rxb2 {[%clk 00:01:40]} {[%emt 00:00:08]} 32. Kxb2 {[%clk 00:01:58]}
{[%emt 00:00:03]} c5 {[%clk 00:01:09]} {[%emt 00:00:36]} 33. Kc2 {[%clk
00:01:17]} {[%emt 00:00:44]} Bf2 {[%clk 00:00:57]} {[%emt 00:00:19]} 34. Kc3
{[%clk 00:00:35]} {[%emt 00:00:47]} Kf7 {[%clk 00:00:21]} {[%emt 00:00:41]} 35.
Rd3 {[%clk 00:00:23]} {[%emt 00:00:17]} Ke6 {[%clk 00:00:17]} {[%emt 00:00:09]}
36. Bxg7 {[%clk 00:00:24]} {[%emt 00:00:04]} Be1+ {[%clk 00:00:11]} {[%emt
00:00:11]} 37. Kc2 {[%clk 00:00:26]} {[%emt 00:00:03]} cxd4 {[%clk 00:00:14]}
{[%emt 00:00:02]} 38. Bxd4 {[%clk 00:00:28]} {[%emt 00:00:03]} Kf5 {[%clk
00:00:16]} {[%emt 00:00:03]} 39. Kd1 {[%clk 00:00:13]} {[%emt 00:00:21]} Bb4
{[%clk 00:00:15]} {[%emt 00:00:05]} 40. Bc3 {[%clk 00:00:15]} {[%emt 00:00:03]}
Bxc3 {[%clk 00:00:10]} {[%emt 00:00:10]} 41. Rxc3 {[%clk 00:00:19]} Ke4 {[%clk
00:00:14]} {[%emt 00:00:01]} 42. c5 {[%clk 00:00:21]} {[%emt 00:00:03]} Kd4
{[%clk 00:00:17]} {[%emt 00:00:02]} 43. Rc2 {[%clk 00:00:24]} {[%emt 00:00:02]}
Rc8 {[%clk 00:00:17]} {[%emt 00:00:05]} 44. c6 {[%clk 00:00:28]} {[%emt
00:00:02]} Kd5 {[%clk 00:00:22]} 45. c7 {[%clk 00:00:32]} {[%emt 00:00:01]} Kd6
{[%clk 00:00:25]} 46. Ke2 {[%clk 00:00:35]} {[%emt 00:00:02]} Rxc7 {[%clk
00:00:29]} {[%emt 00:00:02]} 47. Rxc7 {[%clk 00:00:39]} {[%emt 00:00:01]} Kxc7
{[%clk 00:00:33]} 48. Kf3 {[%clk 00:00:42]} Kc6 {[%clk 00:00:34]} {[%emt
00:00:05]} 49. Kg4 {[%clk 00:00:46]} Kb5 {[%clk 00:00:38]} 50. Kxg5 {[%emt
00:00:01]} Ka4 51. Kxf4 {[%clk 00:00:47]} {[%emt 00:00:02]} Ka3 {[%clk
00:00:43]} 52. h4 {[%clk 00:00:50]} {[%emt 00:00:03]} Kxa2 {[%clk 00:00:47]} 53.
h5 {[%clk 00:00:55]} a5 {[%clk 00:00:51]} 54. h6 {[%clk 00:00:51]} {[%emt
00:00:01]} 1-0

[Event "Open NK Rapid 2025"]
[Site "Helmond, Netherlands"]
[Date "2025.05.03"]
[Round "4.20"]
[White "Rogozyanskiy, Alexander"]
[Black "Grooten, Tommy"]
[Result "0-1"]
[TimeControl "15+5"]
[WhiteFideId "1092138"]
[BlackFideId "1068806"]
[WhiteElo "1726"]
[BlackElo "2027"]

1. e4 {[%clk 00:15:09]} c5 {[%clk 00:15:10]} {[%emt 00:00:01]} 2. Nf3 {[%clk
00:15:11]} {[%emt 00:00:02]} e6 {[%clk 00:15:14]} {[%emt 00:00:01]} 3. d4
{[%clk 00:15:15]} {[%emt 00:00:02]} cxd4 {[%clk 00:15:18]} 4. Nxd4 {[%clk
00:15:18]} {[%emt 00:00:01]} Nf6 {[%clk 00:15:23]} {[%emt 00:00:01]} 5. Nc3
{[%clk 00:15:16]} {[%emt 00:00:06]} d6 {[%clk 00:15:26]} {[%emt 00:00:02]} 6.
Be3 {[%clk 00:15:04]} {[%emt 00:00:17]} a6 {[%clk 00:15:25]} {[%emt 00:00:07]}
7. f4 {[%clk 00:14:44]} {[%emt 00:00:24]} b5 {[%clk 00:15:22]} {[%emt
00:00:08]} 8. Bd3 {[%clk 00:14:27]} {[%emt 00:00:23]} Bb7 {[%clk 00:15:20]}
{[%emt 00:00:07]} 9. Qf3 {[%clk 00:14:13]} {[%emt 00:00:18]} b4 {[%clk
00:15:21]} {[%emt 00:00:04]} 10. Nce2 {[%clk 00:14:15]} {[%emt 00:00:03]} Nbd7
{[%emt 00:01:01]} 11. g4 {[%clk 00:13:19]} {[%emt 00:00:01]} h6 {[%clk
00:15:01]} {[%emt 00:00:30]} 12. O-O-O {[%clk 00:12:58]} {[%emt 00:00:25]} Rc8
{[%clk 00:14:42]} {[%emt 00:00:24]} 13. Ng3 {[%clk 00:12:45]} {[%emt 00:00:19]}
Be7 {[%clk 00:14:35]} {[%emt 00:00:11]} 14. h4 {[%clk 00:12:44]} {[%emt
00:00:06]} h5 {[%clk 00:14:07]} {[%emt 00:00:34]} 15. g5 {[%clk 00:10:38]}
{[%emt 00:02:10]} Ng4 {[%clk 00:14:09]} {[%emt 00:00:03]} 16. Bd2 {[%clk
00:10:29]} {[%emt 00:00:13]} Qb6 {[%clk 00:13:03]} {[%emt 00:01:12]} 17. Nxh5
{[%clk 00:09:52]} {[%emt 00:00:43]} Qxd4 {[%clk 00:12:13]} {[%emt 00:00:55]} 18.
Kb1 {[%clk 00:09:03]} {[%emt 00:00:54]} Rxh5 {[%clk 00:11:00]} {[%emt
00:01:17]} 19. Qxg4 {[%clk 00:08:57]} {[%emt 00:00:10]} g6 {[%clk 00:10:37]}
{[%emt 00:00:29]} 20. Rhe1 {[%clk 00:08:44]} {[%emt 00:00:18]} Qh8 {[%clk
00:10:09]} {[%emt 00:00:33]} 21. Bxb4 {[%clk 00:08:04]} {[%emt 00:00:46]} Nb6
{[%clk 00:09:26]} {[%emt 00:00:48]} 22. f5 {[%clk 00:07:07]} {[%emt 00:01:01]}
Rxh4 {[%clk 00:09:28]} {[%emt 00:00:03]} 23. Qg1 {[%clk 00:07:08]} {[%emt
00:00:05]} Na4 {[%clk 00:08:08]} {[%emt 00:01:25]} 24. c3 {[%clk 00:06:58]}
{[%emt 00:00:15]} gxf5 {[%clk 00:06:31]} {[%emt 00:01:42]} 25. Bc2 {[%clk
00:06:24]} {[%emt 00:00:38]} Bc6 {[%clk 00:05:04]} {[%emt 00:01:33]} 26. Qa7
{[%clk 00:05:28]} {[%emt 00:01:00]} Bb5 {[%clk 00:03:24]} {[%emt 00:01:45]} 27.
e5 {[%emt 00:00:45]} Rxb4 {[%clk 00:01:38]} {[%emt 00:01:49]} 28. cxb4 {[%clk
00:04:48]} {[%emt 00:00:08]} Qh2 {[%clk 00:01:31]} {[%emt 00:00:11]} 29. Bxa4
{[%clk 00:03:25]} {[%emt 00:01:28]} Bxa4 {[%clk 00:01:33]} {[%emt 00:00:03]} 30.
Qxa6 {[%clk 00:03:29]} {[%emt 00:00:02]} Qc2+ {[%clk 00:01:30]} {[%emt
00:00:07]} 31. Ka1 {[%clk 00:03:33]} {[%emt 00:00:02]} d5 {[%clk 00:01:14]}
{[%emt 00:00:21]} 32. b5 {[%clk 00:02:42]} {[%emt 00:00:56]} Ba3 {[%clk
00:00:42]} {[%emt 00:00:37]} 33. Rb1 {[%clk 00:02:00]} {[%emt 00:00:47]} Qc4
{[%clk 00:00:21]} {[%emt 00:00:27]} 34. g6 {[%clk 00:01:31]} {[%emt 00:00:33]}
Bf8 {[%clk 00:00:12]} {[%emt 00:00:14]} 35. Rh1 {[%clk 00:00:44]} {[%emt
00:00:51]} Bxb5 {[%clk 00:00:15]} {[%emt 00:00:03]} 36. gxf7+ {[%clk 00:00:44]}
{[%emt 00:00:04]} Kxf7 {[%emt 00:00:26]} 37. Rh7+ {[%clk 00:00:26]} Bg7 {[%clk
00:00:21]} {[%emt 00:00:02]} 38. Qa7+ {[%clk 00:00:21]} {[%emt 00:00:10]} Rc7
{[%clk 00:00:25]} {[%emt 00:00:01]} 39. Qg1 {[%clk 00:00:25]} {[%emt 00:00:01]}
Kg8 {[%clk 00:00:16]} {[%emt 00:00:14]} 40. Rh3 {[%clk 00:00:11]} {[%emt
00:00:18]} d4 {[%clk 00:00:13]} {[%emt 00:00:11]} 41. Rh4 {[%clk 00:00:06]}
{[%emt 00:00:08]} Ra7 {[%clk 00:00:12]} {[%emt 00:00:06]} 42. a3 {[%clk
00:00:08]} {[%emt 00:00:03]} Qc5 {[%clk 00:00:11]} {[%emt 00:00:06]} 43. Qxd4
{[%clk 00:00:06]} {[%emt 00:00:07]} Rxa3+ {[%clk 00:00:12]} {[%emt 00:00:03]}
44. bxa3 {[%clk 00:00:08]} {[%emt 00:00:03]} Qxa3# {[%clk 00:00:17]} 0-1

[Event "Open NK Rapid 2025"]
[Site "Helmond, Netherlands"]
[Date "2025.05.03"]
[Round "4.21"]
[White "Koppenens, Oscar"]
[Black "Bok, Benjamin"]
[Result "0-1"]
[TimeControl "15+5"]
[WhiteFideId "1087940"]
[BlackFideId "1017063"]
[WhiteElo "1858"]
[BlackElo "2583"]

1. e4 {[%clk 00:15:08]} {[%emt 00:00:02]} c5 {[%clk 00:14:47]} {[%emt
00:00:25]} 2. Nf3 {[%clk 00:15:08]} {[%emt 00:00:03]} d6 {[%clk 00:14:51]}
{[%emt 00:00:02]} 3. d4 {[%clk 00:15:10]} {[%emt 00:00:02]} cxd4 {[%clk
00:14:54]} {[%emt 00:00:02]} 4. Nxd4 {[%clk 00:15:13]} {[%emt 00:00:02]} Nf6
{[%clk 00:14:58]} {[%emt 00:00:02]} 5. Nc3 {[%clk 00:15:17]} {[%emt 00:00:01]}
a6 {[%clk 00:15:01]} {[%emt 00:00:02]} 6. f3 {[%clk 00:15:10]} {[%emt
00:00:10]} e5 {[%clk 00:15:02]} {[%emt 00:00:05]} 7. Nb3 {[%clk 00:15:13]}
{[%emt 00:00:02]} Be6 {[%clk 00:15:06]} {[%emt 00:00:01]} 8. Be3 {[%clk
00:15:14]} {[%emt 00:00:05]} Be7 {[%clk 00:15:08]} {[%emt 00:00:02]} 9. Qd2
{[%clk 00:15:06]} {[%emt 00:00:13]} O-O {[%clk 00:15:10]} {[%emt 00:00:03]} 10.
Nd5 {[%clk 00:14:57]} {[%emt 00:00:14]} Nbd7 {[%clk 00:13:55]} {[%emt
00:01:20]} 11. g4 {[%clk 00:12:42]} {[%emt 00:02:20]} Bxd5 {[%clk 00:09:06]}
{[%emt 00:04:55]} 12. exd5 {[%clk 00:12:39]} {[%emt 00:00:08]} Nb6 {[%clk
00:07:25]} {[%emt 00:01:46]} 13. c4 {[%clk 00:11:25]} {[%emt 00:01:18]} Qc7
{[%clk 00:06:21]} {[%emt 00:01:10]} 14. Qa5 {[%clk 00:11:14]} {[%emt 00:00:15]}
Bd8 {[%clk 00:06:02]} {[%emt 00:00:24]} 15. g5 {[%clk 00:08:22]} {[%emt
00:02:58]} Nh5 {[%clk 00:06:03]} {[%emt 00:00:04]} 16. O-O-O {[%clk 00:07:49]}
{[%emt 00:00:37]} Nf4 {[%clk 00:04:36]} {[%emt 00:01:33]} 17. c5 {[%clk
00:06:38]} {[%emt 00:01:16]} Nbxd5 {[%clk 00:03:37]} {[%emt 00:01:04]} 18. Qxc7
{[%clk 00:06:31]} {[%emt 00:00:11]} Bxc7 {[%clk 00:03:41]} 19. Bxf4 {[%clk
00:06:31]} {[%emt 00:00:05]} Nxf4 {[%clk 00:03:45]} {[%emt 00:00:01]} 20. cxd6
{[%clk 00:06:34]} {[%emt 00:00:02]} Bb6 {[%clk 00:03:36]} {[%emt 00:00:15]} 21.
Bd3 {[%clk 00:05:38]} {[%emt 00:01:01]} Rfd8 {[%clk 00:01:26]} {[%emt
00:02:15]} 22. Be4 {[%clk 00:05:10]} {[%emt 00:00:33]} Rab8 {[%clk 00:01:23]}
{[%emt 00:00:08]} 23. Kb1 {[%clk 00:03:58]} {[%emt 00:01:16]} Nh3 {[%clk
00:00:57]} {[%emt 00:00:31]} 24. Rhe1 {[%clk 00:02:14]} {[%emt 00:01:49]} Nxg5
{[%clk 00:00:50]} {[%emt 00:00:12]} 25. Bd5 {[%clk 00:02:18]} {[%emt 00:00:01]}
Kf8 {[%clk 00:00:41]} {[%emt 00:00:15]} 26. h4 {[%clk 00:01:56]} {[%emt
00:00:26]} Nh3 {[%clk 00:00:40]} {[%emt 00:00:06]} 27. Rxe5 {[%clk 00:01:58]}
{[%emt 00:00:02]} Rxd6 {[%clk 00:00:37]} {[%emt 00:00:09]} 28. Rde1 {[%clk
00:01:53]} {[%emt 00:00:10]} Nf4 {[%clk 00:00:25]} {[%emt 00:00:17]} 29. Bxb7
{[%clk 00:01:37]} {[%emt 00:00:21]} Nd3 {[%clk 00:00:20]} {[%emt 00:00:10]} 30.
Bxa6 {[%clk 00:01:36]} {[%emt 00:00:06]} Nxe1 {[%clk 00:00:10]} {[%emt
00:00:15]} 31. Rxe1 {[%clk 00:01:39]} {[%emt 00:00:02]} Bf2 {[%clk 00:00:13]}
{[%emt 00:00:02]} 32. Rf1 {[%clk 00:01:41]} {[%emt 00:00:03]} Bxh4 {[%clk
00:00:17]} {[%emt 00:00:01]} 33. Bc4 {[%clk 00:01:44]} {[%emt 00:00:03]} Bf6
{[%clk 00:00:18]} {[%emt 00:00:03]} 34. a4 {[%clk 00:01:43]} {[%emt 00:00:06]}
Rb4 {[%clk 00:00:22]} {[%emt 00:00:02]} 35. Rc1 {[%clk 00:01:20]} {[%emt
00:00:27]} Rc6 {[%clk 00:00:25]} {[%emt 00:00:02]} 36. Bb5 {[%clk 00:01:04]}
{[%emt 00:00:21]} Rxc1+ {[%clk 00:00:28]} {[%emt 00:00:06]} 37. Kxc1 {[%clk
00:01:05]} Rxb3 {[%clk 00:00:31]} {[%emt 00:00:02]} 0-1

[Event "Open NK Rapid 2025"]
[Site "Helmond, Netherlands"]
[Date "2025.05.03"]
[Round "4.22"]
[White "Ponomarev, Ivan"]
[Black "Stolwijk, Colin"]
[Result "0-1"]
[TimeControl "15+5"]
[WhiteFideId "34411003"]
[BlackFideId "1033743"]
[WhiteElo "1857"]
[BlackElo "2286"]

1. c4 {[%clk 00:15:08]} {[%emt 00:00:01]} Nf6 {[%clk 00:15:06]} {[%emt
00:00:05]} 2. g3 {[%clk 00:15:11]} {[%emt 00:00:02]} g6 {[%clk 00:15:06]}
{[%emt 00:00:05]} 3. Bg2 {[%clk 00:15:14]} {[%emt 00:00:01]} Bg7 {[%clk
00:15:10]} {[%emt 00:00:02]} 4. Nc3 {[%clk 00:15:17]} {[%emt 00:00:02]} O-O
{[%clk 00:15:11]} {[%emt 00:00:03]} 5. d4 {[%clk 00:15:21]} {[%emt 00:00:02]}
Nc6 {[%clk 00:14:59]} {[%emt 00:00:17]} 6. Nf3 {[%clk 00:15:04]} {[%emt
00:00:22]} d5 {[%clk 00:15:02]} {[%emt 00:00:02]} 7. cxd5 {[%clk 00:14:40]}
{[%emt 00:00:29]} Nxd5 {[%clk 00:15:04]} {[%emt 00:00:02]} 8. e4 {[%clk
00:14:03]} {[%emt 00:00:42]} Nb6 {[%clk 00:14:48]} {[%emt 00:00:21]} 9. d5
{[%clk 00:12:50]} {[%emt 00:01:18]} Na5 {[%clk 00:14:52]} {[%emt 00:00:02]} 10.
O-O {[%clk 00:12:34]} {[%emt 00:00:21]} c6 {[%clk 00:14:49]} {[%emt 00:00:08]}
11. dxc6 {[%clk 00:11:35]} {[%emt 00:01:04]} Nxc6 {[%clk 00:14:37]} {[%emt
00:00:17]} 12. Qe2 {[%clk 00:08:32]} {[%emt 00:03:08]} Be6 {[%clk 00:14:10]}
{[%emt 00:00:31]} 13. Rd1 {[%clk 00:08:20]} {[%emt 00:00:17]} Qc8 {[%clk
00:14:14]} {[%emt 00:00:01]} 14. Be3 {[%clk 00:08:12]} {[%emt 00:00:14]} Nc4
{[%clk 00:13:54]} {[%emt 00:00:25]} 15. Rac1 {[%clk 00:07:59]} {[%emt
00:00:19]} Nxe3 {[%clk 00:12:45]} {[%emt 00:01:14]} 16. Qxe3 {[%clk 00:07:54]}
{[%emt 00:00:09]} Qb8 {[%clk 00:12:37]} {[%emt 00:00:13]} 17. b3 {[%clk
00:07:00]} {[%emt 00:00:59]} h6 {[%clk 00:12:20]} {[%emt 00:00:21]} 18. Nd5
{[%clk 00:06:21]} {[%emt 00:00:44]} Kh7 {[%clk 00:12:11]} {[%emt 00:00:14]} 19.
Qc5 {[%clk 00:05:46]} {[%emt 00:00:40]} Re8 {[%clk 00:11:30]} {[%emt 00:00:47]}
20. b4 {[%clk 00:05:31]} {[%emt 00:00:21]} a6 {[%clk 00:11:32]} {[%emt
00:00:02]} 21. a4 {[%clk 00:05:28]} {[%emt 00:00:08]} Bg4 {[%clk 00:08:41]}
{[%emt 00:02:55]} 22. h3 {[%clk 00:04:51]} {[%emt 00:00:43]} Bxf3 {[%clk
00:08:39]} {[%emt 00:00:07]} 23. Bxf3 {[%clk 00:04:55]} {[%emt 00:00:01]} e6
{[%clk 00:06:29]} {[%emt 00:02:14]} 24. Nb6 {[%clk 00:04:41]} {[%emt 00:00:18]}
Bf8 {[%clk 00:06:33]} {[%emt 00:00:03]} 25. Qe3 {[%clk 00:03:58]} {[%emt
00:00:47]} e5 {[%clk 00:02:46]} {[%emt 00:03:52]} 26. Nxa8 {[%clk 00:03:21]}
{[%emt 00:00:42]} Qxa8 {[%clk 00:02:49]} {[%emt 00:00:02]} 27. Rd7 {[%clk
00:03:15]} {[%emt 00:00:12]} Kg7 {[%clk 00:02:29]} {[%emt 00:00:25]} 28. b5
{[%clk 00:02:29]} {[%emt 00:00:51]} axb5 {[%clk 00:02:10]} {[%emt 00:00:24]} 29.
axb5 {[%clk 00:02:32]} {[%emt 00:00:02]} Nd4 {[%clk 00:02:13]} {[%emt
00:00:01]} 30. Rcc7 {[%clk 00:02:21]} {[%emt 00:00:16]} Qa2 {[%clk 00:02:16]}
{[%emt 00:00:02]} 31. Rxb7 {[%clk 00:01:54]} {[%emt 00:00:32]} Ra8 {[%clk
00:02:20]} {[%emt 00:00:01]} 32. Rxf7+ {[%clk 00:01:55]} {[%emt 00:00:04]} Qxf7
{[%clk 00:02:22]} {[%emt 00:00:03]} 33. Rxf7+ {[%clk 00:01:59]} {[%emt
00:00:01]} Kxf7 {[%clk 00:02:26]} {[%emt 00:00:02]} 34. Bg2 {[%clk 00:01:40]}
{[%emt 00:00:24]} Ra3 {[%clk 00:01:33]} {[%emt 00:00:58]} 35. Qe1 {[%clk
00:01:17]} {[%emt 00:00:25]} Rb3 {[%clk 00:01:31]} {[%emt 00:00:09]} 36. b6
{[%clk 00:00:50]} {[%emt 00:00:31]} Bc5 {[%clk 00:01:06]} {[%emt 00:00:32]} 37.
Qa5 {[%clk 00:00:44]} {[%emt 00:00:11]} Rb5 {[%clk 00:01:07]} {[%emt 00:00:04]}
38. Qa7+ {[%clk 00:00:40]} {[%emt 00:00:09]} Kf6 {[%clk 00:01:11]} 39. Qc7
{[%clk 00:00:27]} {[%emt 00:00:17]} Bxb6 {[%clk 00:01:11]} {[%emt 00:00:06]} 40.
Qd6+ {[%clk 00:00:30]} {[%emt 00:00:02]} Kf7 {[%clk 00:01:15]} {[%emt
00:00:01]} 41. Kh2 {[%clk 00:00:26]} {[%emt 00:00:09]} Rb2 {[%clk 00:01:14]}
{[%emt 00:00:06]} 42. Qxe5 {[%clk 00:00:16]} {[%emt 00:00:15]} Rxf2 {[%clk
00:01:03]} {[%emt 00:00:16]} 43. Qd5+ {[%clk 00:00:19]} {[%emt 00:00:02]} Ne6
{[%clk 00:00:54]} {[%emt 00:00:13]} 44. h4 {[%clk 00:00:17]} {[%emt 00:00:08]}
Bc7 {[%clk 00:00:44]} {[%emt 00:00:15]} 45. e5 {[%clk 00:00:16]} {[%emt
00:00:05]} Ke7 {[%clk 00:00:41]} {[%emt 00:00:08]} 46. Kg1 {[%clk 00:00:14]}
{[%emt 00:00:07]} Re2 {[%clk 00:00:42]} {[%emt 00:00:04]} 47. Bh3 {[%clk
00:00:15]} {[%emt 00:00:05]} Rxe5 {[%clk 00:00:45]} {[%emt 00:00:02]} 48. Qd2
{[%clk 00:00:11]} {[%emt 00:00:08]} Bb6+ {[%clk 00:00:33]} {[%emt 00:00:18]} 49.
Kf1 {[%clk 00:00:12]} {[%emt 00:00:02]} Be3 {[%clk 00:00:29]} {[%emt 00:00:10]}
50. Qb4+ {[%clk 00:00:15]} {[%emt 00:00:03]} Bc5 {[%clk 00:00:27]} {[%emt
00:00:07]} 51. Qb7+ {[%clk 00:00:19]} {[%emt 00:00:01]} Kf6 {[%clk 00:00:31]}
52. Qf3+ {[%clk 00:00:20]} {[%emt 00:00:04]} Kg7 {[%clk 00:00:28]} {[%emt
00:00:07]} 53. Qb7+ {[%clk 00:00:17]} {[%emt 00:00:08]} Kf6 {[%clk 00:00:29]}
{[%emt 00:00:05]} 54. Bxe6 {[%clk 00:00:15]} {[%emt 00:00:07]} Kxe6 {[%clk
00:00:27]} {[%emt 00:00:07]} 55. Qc8+ {[%clk 00:00:16]} {[%emt 00:00:04]} Kf6
{[%clk 00:00:31]} 56. Qh8+ {[%clk 00:00:17]} {[%emt 00:00:04]} Kf5 {[%clk
00:00:35]} {[%emt 00:00:02]} 57. Qxh6 {[%clk 00:00:20]} {[%emt 00:00:01]} Be7
{[%clk 00:00:25]} {[%emt 00:00:15]} 58. Qf4+ {[%clk 00:00:16]} {[%emt
00:00:09]} Ke6 {[%clk 00:00:29]} {[%emt 00:00:01]} 59. Qc4+ {[%clk 00:00:19]}
{[%emt 00:00:02]} Kf6 {[%clk 00:00:28]} {[%emt 00:00:01]} 60. Kg2 {[%clk
00:00:22]} {[%emt 00:00:06]} Rc5 {[%clk 00:00:28]} {[%emt 00:00:06]} 61. Qd4+
{[%clk 00:00:25]} {[%emt 00:00:02]} Kf7 {[%clk 00:00:30]} {[%emt 00:00:03]} 62.
Qf4+ {[%clk 00:00:27]} {[%emt 00:00:03]} Kg8 {[%clk 00:00:24]} {[%emt
00:00:11]} 63. Qe4 {[%clk 00:00:26]} {[%emt 00:00:05]} Kf7 {[%clk 00:00:28]}
{[%emt 00:00:02]} 64. Kf3 {[%clk 00:00:24]} {[%emt 00:00:07]} Rf5+ {[%clk
00:00:25]} {[%emt 00:00:08]} 65. Kg2 {[%clk 00:00:25]} {[%emt 00:00:04]} Rc5
{[%clk 00:00:29]} {[%emt 00:00:01]} 66. g4 {[%clk 00:00:26]} {[%emt 00:00:03]}
Bxh4 {[%clk 00:00:16]} {[%emt 00:00:18]} 67. Qb7+ {[%clk 00:00:18]} {[%emt
00:00:14]} Be7 {[%clk 00:00:19]} {[%emt 00:00:01]} 68. Qb3+ {[%clk 00:00:22]}
{[%emt 00:00:01]} Kg7 {[%clk 00:00:22]} {[%emt 00:00:02]} 69. Qe3 {[%clk
00:00:22]} {[%emt 00:00:05]} Kf7 {[%clk 00:00:25]} {[%emt 00:00:02]} 70. Kf3
{[%clk 00:00:26]} {[%emt 00:00:02]} Kf8 {[%clk 00:00:24]} {[%emt 00:00:07]} 71.
Qd4 {[%clk 00:00:24]} {[%emt 00:00:04]} Kf7 {[%clk 00:00:28]} {[%emt 00:00:03]}
72. Ke4 {[%clk 00:00:21]} {[%emt 00:00:07]} Rg5 {[%clk 00:00:30]} {[%emt
00:00:04]} 73. Kf4 {[%clk 00:00:15]} {[%emt 00:00:11]} Rc5 {[%clk 00:00:34]}
{[%emt 00:00:01]} 74. Kf3 {[%clk 00:00:14]} {[%emt 00:00:06]} Kf8 {[%clk
00:00:33]} {[%emt 00:00:06]} 75. Qh8+ {[%clk 00:00:18]} Kf7 {[%clk 00:00:37]}
{[%emt 00:00:01]} 76. Qh7+ {[%clk 00:00:21]} Kf6 {[%clk 00:00:41]} {[%emt
00:00:02]} 77. Qg8 {[%clk 00:00:20]} {[%emt 00:00:06]} g5 {[%clk 00:00:31]}
{[%emt 00:00:14]} 78. Qh8+ {[%clk 00:00:20]} {[%emt 00:00:06]} Ke6 {[%clk
00:00:36]} 79. Qh6+ {[%clk 00:00:21]} {[%emt 00:00:04]} Kd7 {[%clk 00:00:40]}
80. Qa6 {[%clk 00:00:20]} {[%emt 00:00:06]} Re5 {[%clk 00:00:33]} {[%emt
00:00:11]} 81. Qb7+ {[%clk 00:00:21]} {[%emt 00:00:05]} Ke6 {[%clk 00:00:37]}
82. Qc6+ {[%clk 00:00:23]} {[%emt 00:00:03]} Kf7 {[%clk 00:00:40]} {[%emt
00:00:01]} 83. Qc4+ {[%clk 00:00:25]} {[%emt 00:00:03]} Kf8 {[%clk 00:00:32]}
{[%emt 00:00:12]} 84. Qd4 {[%clk 00:00:23]} {[%emt 00:00:09]} Bf6 {[%clk
00:00:24]} {[%emt 00:00:12]} 85. Qd6+ {[%clk 00:00:20]} {[%emt 00:00:08]} Kg7
{[%clk 00:00:26]} {[%emt 00:00:03]} 86. Qd7+ {[%clk 00:00:19]} {[%emt
00:00:06]} Re7 {[%clk 00:00:31]} 87. Qc6 {[%clk 00:00:17]} {[%emt 00:00:07]}
Ra7 {[%clk 00:00:27]} {[%emt 00:00:09]} 88. Ke4 {[%clk 00:00:15]} {[%emt
00:00:07]} Rf7 {[%clk 00:00:29]} {[%emt 00:00:05]} 89. Qa6 {[%clk 00:00:13]}
{[%emt 00:00:04]} Re7+ {[%clk 00:00:31]} {[%emt 00:00:03]} 90. Kf5 {[%clk
00:00:14]} {[%emt 00:00:04]} Re5# {[%clk 00:00:33]} {[%emt 00:00:01]} 0-1